{"text_format":"3","workbook":"xlsx","n_sheets":1,"sheets":["给、排水"],"not_rendered":{"defined_names":1},"read":"whole","date_system":"1900"}

{"sheet":"给、排水","index":0,"n_rows":97,"n_cols":10,"rows_kept":97,"merged":[[0,0,0,9],[1,0,3,0],[1,1,3,1],[1,2,3,2],[1,3,3,3],[1,4,3,4],[1,5,1,9],[2,5,3,5],[2,6,3,6],[2,7,3,7],[2,8,3,8],[2,9,3,9],[4,0,4,3],[36,0,36,5],[95,0,95,5],[96,0,100,9]]}
["2023年“P”项目装饰装修工程清单报价表",null,"","","","","",null,null,""]
["序号","项目名称","项目特征描述","计量\r\n单位","工程量","金额（元）","",null,null,""]
[null,"","","","","全费用单价限价","合价","班组所报单价","合价","备注"]
[null,"","","",""]
["装修工程"]
[1,"不上人屋面保温层（1#、3#管理房）","1.浅色涂料保护层（丙烯酸系反射涂料）\n2.10mm厚低强度等级砂浆隔离层\n3.4.0mm厚SBS改性沥青防水卷材第二道\n4.4.0mm厚SBS改性沥青防水卷材（遇墙上返250mm）第一道\n5.20mm厚1:3水泥砂浆保护层\n6.挤塑聚苯乙烯泡沫塑料(厚度、做法详节能专篇)(B1级)\n7.最薄30mm厚页岩陶粒混凝土（ρ=1300）2%找坡层\n8.20mm厚1:3水泥砂浆找平层\n9.2mm厚水泥基渗透结晶防水涂料\n10.防水附加层、加强层、洞口填塞、搭接层、防水层收头投标人自行考虑综合进入报价，不再另计，做法详施工图。\n11.本项目所有砂浆均为成品砂浆，干拌砂浆或成品砂浆投标人自行考虑。","m2",{"$f":"178.84+178.84","v":357.68},400,{"$f":"F6*E6","v":143072}]
[2,"种植屋面（5#展馆）","1.聚酯无纺土工布250g/m²过滤层\n2.20mm厚网状塑料排（蓄）水板\n3.聚酯无纺土工布400g/m²保护层\n4.4.0mm厚SBS改性沥青（耐根穿刺型）防水卷材\n5.4.0mm厚SBS改性沥青防水卷材,遇墙上返250mm\n6.20mm厚1:3水泥砂浆找平层\n7.最薄30mm厚页岩陶粒混凝土（ρ=1100）2%找坡层\n8.挤塑聚苯乙烯泡沫塑料(厚度、做法详节能专篇)(B1级)\n9.20mm厚1:3水泥砂浆找平层\n10.2mm厚水泥基渗透结晶防水涂料\n11.防水附加层、加强层、洞口填塞、搭接层、防水层收头投标人自行考虑综合进入报价，不再另计，做法详施工图。\n12.本项目所有砂浆均为成品砂浆，干拌砂浆或成品砂浆投标人自行考虑。","m2",495.61,420,208156.2]
[3,"屋面种植土回填","1.5#展馆屋面种植土回填\n2.厚度：300mm厚\n3.回填高度、方式：综合考虑，所需要的机械及措施费已含在综合单价内不在单独计取。\n4.具体做法:详设计图并满足相关验收规范要求","m3",{"$f":"495.61*0.3","v":148.683},65,9664.395]
[4,"不上人屋面保温层（异形廊架）","1.浅色涂料保护层（丙烯酸系反射涂料）\n2.10mm厚低强度等级砂浆隔离层\n3.4.0mm厚SBS改性沥青防水卷材\n4.4.0mm厚SBS改性沥青防水卷材（遇墙上返250mm）\n5.20mm厚1:3水泥砂浆找平层\n6.最薄30mm厚页岩陶粒混凝土（ρ=1300）2%找坡层\n7.2mm厚水泥基渗透结晶防水涂料\n8.防水附加层、加强层、洞口填塞、搭接层、防水层收头投标人自行考虑综合进入报价，不再另计，做法详施工图。\n9.本项目所有砂浆均为成品砂浆，干拌砂浆或成品砂浆投标人自行考虑。","m2",922.11,320,295075.2]
[5,"外墙涂料（1#、3#、5#展馆）","1.墙体（基层清理干净，1：3水泥砂浆填填补平整，洒水润湿）\n2.10mm界面砂浆\n3.15mm厚聚合物水泥砂浆防水层一道，1.2mm厚JS水泥基防水涂料一道\n4.水泥发泡板Ⅰ型(厚度、做法详节能专篇)(A级)\n5.5mm厚专用聚合物砂浆分两次抹，中间压入一层耐碱玻纤网格布\n6.4mm厚抗裂砂浆增强保护层分两遍完成，第一遍抹好后，压入耐碱玻纤网格布，再抹第二遍。\n7.刮2mm厚抗裂柔性耐水腻子\n8.涂刷2mm厚封闭底漆\n9.喷涂2mm厚真石漆\n10.涂刷2mm厚罩光清漆\n11.涂料外墙实施前应做小样，测试墙体和屋面保温复合后的燃烧性满足要求，并送消防备案。具体做法:详设计图并满足相关验收规范要求。\n12.本项目所有砂浆均为成品砂浆，干拌砂浆或成品砂浆投标人自行考虑。","m2",{"$f":"122.36+122.36+126.9","v":371.62},220,81756.4]
[6,"外墙涂料（异形廊架）","1.墙体（基层清理干净，1：3水泥砂浆填填补平整，洒水润湿）\n2.刷界面处理剂\n3.8mm厚1:3水泥砂浆打底\n4.8mm厚水泥砂浆找平，清扫、填补裂缝麻坑。\n5.刷建筑胶一道\n6.刮2mm厚抗裂柔性耐水腻子\n7.涂刷2mm厚封闭底漆\n8.喷涂2mm厚真石漆\n9.涂刷2mm厚罩光清漆\n10.涂料外墙实施前应做小样，测试墙体和屋面保温复合后的燃烧性满足要求，并送消防备案。具体做法:详设计图并满足相关验收规范要求。\n11.本项目所有砂浆均为成品砂浆，干拌砂浆或成品砂浆投标人自行考虑。","m2",663.41,120,79609.2]
[7,"外墙砖","1.墙体（基层清理干净，1：3水泥砂浆填填补平整，洒水润湿）\n2.10mm界面砂浆\n3.15mm厚聚合物水泥砂浆防水层一道，1.2mm厚JS水泥基防水涂料一道\n4.水泥发泡板Ⅰ型(厚度、做法详节能专篇)(A级)\n5.3mm厚外加剂专业砂浆底面刮糙，或专业界面剂甩毛\n6.9mm厚1:3水泥砂浆中层刮平扫毛或划出纹道\n7.刷素水泥砂浆一道\n8.6mm厚1:2.5水泥砂浆（掺建筑胶）\n9.贴8～10厚外墙面砖（青砖色号：1706 N5.75），在砖粘贴面上随贴随涂刷一遍混凝土界面剂，增强粘接力\n10.1:1水泥砂浆勾缝\n11.具体做法:详设计图并满足相关验收规范要求。\n12.本项目所有砂浆均为成品砂浆，干拌砂浆或成品砂浆投标人自行考虑。","m2",{"$f":"92.11+92.11","v":184.22},270,49739.4]
[8,"3mm铝单板外墙、氟碳漆饰面","1.颜色：白色氟碳漆饰面，色号13217.5GY9/1\n2.厚度：3mm\n3.配套龙骨：详幕墙专项设计图\n4.辅材：已综合考虑不再单独计算费用\n4.固定方式综合考虑\n6.包含但不限于辅材、预埋铁件等均已综合考虑、不再另行计算\n7.二次转运及多次转运、上下车等由投标人自行考虑\n8.具体做法:详设计需满足设计图并满足相关验收规范要求","m2",573.6,650,372840]
[9,"浅灰色铝合金格栅","1.颜色：浅灰色铝合金格栅，色号1706 N5.75\n2.厚度：铝合金矩管40*40*2 矩管中心间距120均布（弧形综合考虑）\n3.辅材：已综合考虑不再单独计算费用\n4.固定方式综合考虑\n5.包含但不限于辅材、预埋铁件等均已综合考虑、不再另行计算\n6.二次转运及多次转运、上下车等由投标人自行考虑\n7.具体做法:详设计需满足设计图并满足相关验收规范要求","m2",{"$f":"61.37+61.37+473.75","v":596.49},580,345964.2]
[10,"玻璃幕墙","1.骨架材料种类、规格、中距：铝合金，详幕墙专项设计图\n2.洞口尺寸:详设计图纸\n3.玻璃品种、厚度：8low-e+12A+8双钢化中空low-e玻璃（弧形综合考虑）\n4.玻璃百叶：综合考虑、增加的工料、多点锁、风撑及相关五金配件等已综合考虑\n5.面层固定方式：详见设计图纸并满足规范要求\n6.嵌缝、塞口材料种类：详见设计图\n7.开窗：幕墙上开窗增加工料、多点锁、风撑及相关五金配件等已综合考虑\n8.包含但不限于辅材、铝单板明框盖板及压板、预埋铁件等均已综合考虑、不再另行计算\n9.二次转运及多次转运、上下车等由投标人自行考虑\n10.幕墙避雷系统详设计图\n11.具体做法:详设计图并满足相关验收规范要求","m2",{"$f":"129.29*2+552.11","v":810.69},1200,972828]
[11,"铝合金地弹门","1.地弹门：详幕墙专项设计，地弹簧：包含地弹簧、地弹簧做法现场与招标人和设计共同确定\n2.门套尺寸及做法:详设计图纸\n3.玻璃品种、厚度：8low-e+12A+8双钢化中空low-e玻璃\n4.固定方式：详见设计图纸并满足规范要求\n5.嵌缝、塞口材料种类：详见设计图\n6.拉手：不锈钢拉手、符合设计及规范要求\n7.龙骨：详设计图纸\n7.包含但不限于辅材、预埋铁件等均已综合考虑、不再另行计算\n8.二次转运及多次转运、上下车等由投标人自行考虑\n9.避雷系统详设计图\n10.具体做法:详设计图并满足相关验收规范要求","m2",{"$f":"16.82*2+48.48","v":82.12},1200,98544]
[12,"无机涂料（内墙面、柱面、梁面）","1.墙体基层处理\n2.7mm厚1：3水泥砂浆打底扫毛\n3.6mm厚1：3水泥砂浆垫层找平\n4.5mm厚1:2.5水泥砂浆罩面磨光\n5.分遍满刮腻子2～3mm厚，找平，磨光\n6.喷（刷）无机涂料(一层底漆，两层面漆，抗菌耐水易洁型)；颜色按装修做法表\n7.具体做法:详设计图并满足相关验收规范要求\n8.本项目所有砂浆均为成品砂浆，干拌砂浆或成品砂浆投标人自行考虑。","m2",{"$f":"140.41*2+129.96+715.66","v":1126.44},45,50689.8]
[13,"瓷砖墙面（内墙）","1.墙体基层处理\n2.10mm厚1：3水泥砂浆打底扫毛，分两次抹\n3.8mm厚1:2水泥砂浆连接层（加建筑胶适量）\n4.6～8mm厚300*600瓷砖，瓷砖贴至吊顶处\n5.瓷砖勾缝剂擦缝\n6.具体做法:详设计图并满足相关验收规范要求\n7.本项目所有砂浆均为成品砂浆，干拌砂浆或成品砂浆投标人自行考虑。","m2",{"$f":"177.94*2+240.8","v":596.68},120,71601.6]
[14,"1.5厚聚合物水泥JS(Ⅱ)防水涂料防水层","1.防水膜品种 ：JS-II复合防水涂料（包工包料）\n2.位置：男厕、女厕、无障碍卫生间、清洁间、盥洗室，所有区域翻墙高度均为1.8m\n3.涂膜厚度、遍数：1.5mm ,2遍\n4.增强材料种类：符合设计要求\n5.防水附加层、加强层、洞口填塞、搭接层、防水层收头投标人自行考虑综合进入报价，不再另计","m2",{"$f":"100*2+200","v":400},58,23200]
[15,"防滑地砖铺贴（小卖部、茶室、展厅、异形廊架等）","1.6～8mm厚600*600防滑玻化砖地砖，配水泥浆擦缝\n2.20mm厚1:2干硬水泥砂浆粘合层，上洒1～2厚干水泥并洒清水适量\n3.20mm厚1:3水泥砂浆掺5％防水剂防潮层找平层\n4.水泥浆水灰比0.4～0.5结合层一道\n5.具体做法:详设计图并满足相关验收规范要求\n6.本项目所有砂浆均为成品砂浆，干拌砂浆或成品砂浆投标人自行考虑。","m2",{"$f":"125*2+423.26+872.64","v":1545.9},115,177778.5]
[16,"防滑地砖铺贴（卫生间、盥洗室）","1.6～8mm厚300*300防滑玻化砖地砖，配水泥浆擦缝\n2.20mm厚1:2干硬水泥砂浆粘合层，上洒1～2厚干水泥并洒清水适量\n3.20mm厚1:3水泥砂浆找平层\n4.水泥浆水灰比0.4～0.5结合层一道\n5.泡沫混凝土回填层\n6.具体做法:详设计图并满足相关验收规范要求\n7.本项目所有砂浆均为成品砂浆，干拌砂浆或成品砂浆投标人自行考虑。","m2",{"$f":"53.35*2+53.77","v":160.47},115,18454.05]
[17,"室外花岗石地面","1.花岗石面层（石材甲供），配水泥浆擦缝\n2.20mm厚1:2干硬水泥砂浆粘合层，上洒1～2厚干水泥并洒清水适量\n3.1:3水泥砂浆掺5％防水剂防潮层找平层，最薄处20mm厚（兼找坡层）\n4.水泥浆水灰比0.4～0.5结合层一道\n5.具体做法:详设计图并满足相关验收规范要求\n6.本项目所有砂浆均为成品砂浆，干拌砂浆或成品砂浆投标人自行考虑。","m2",{"$f":"58.97*2+441.5","v":559.44},70,39160.8]
[18,"室外平台花岗石面层","1.花岗石面层（石材甲供），配水泥浆擦缝\n2.20mm厚1:2干硬水泥砂浆粘合层，上洒1～2厚干水泥并洒清水适量\n3.1:3水泥砂浆掺5％防水剂防潮层找平层，最薄处20mm厚（兼找坡层）\n4.水泥浆水灰比0.4～0.5结合层一道\n5.具体做法:详设计图并满足相关验收规范要求\n6.本项目所有砂浆均为成品砂浆，干拌砂浆或成品砂浆投标人自行考虑。","m2",{"$f":"31.32*2","v":62.64},70,4384.8]
[19,"花岗石台阶","1.花岗石面层（石材甲供），配水泥浆擦缝\n2.20mm厚1:2干硬水泥砂浆粘合层，上洒1～2厚干水泥并洒清水适量\n3.1:3水泥砂浆掺5％防水剂防潮层找平层，最薄处20mm厚（兼找坡层）\n4.水泥浆水灰比0.4～0.5结合层一道\n5.具体做法:详设计图并满足相关验收规范要求\n6.本项目所有砂浆均为成品砂浆，干拌砂浆或成品砂浆投标人自行考虑。","m2",{"$f":"10.2*2+40.41","v":60.81},80,4864.8]
[20,"花岗石无障碍坡道","1.花岗石面层（石材甲供），配水泥浆擦缝\n2.20mm厚1:2干硬水泥砂浆粘合层，上洒1～2厚干水泥并洒清水适量\n3.1:3水泥砂浆掺5％防水剂防潮层找平层，最薄处20mm厚（兼找坡层）\n4.水泥浆水灰比0.4～0.5结合层一道\n5.具体做法:详设计图并满足相关验收规范要求\n6.本项目所有砂浆均为成品砂浆，干拌砂浆或成品砂浆投标人自行考虑。","m2",{"$f":"7.19*2+9.37","v":23.75},70,1662.5]
[21,"防静电架空活动室楼地面","1.150至250架空600*600*40成品防静电活动地板(金属面层)，厚度40mm，防静电值2.5x10^4~1.0x10^9Q之间\n2.20mm厚1:3水泥砂浆找平层\n3.水泥浆水灰0.4~0.5结合层一道\n4.20mm厚1:3水泥砂浆掺5％防水剂防潮层找平层\n5.具体做法:详设计图并满足相关验收规范要求\n6.本项目所有砂浆均为成品砂浆，干拌砂浆或成品砂浆投标人自行考虑。","m2",50,300,15000]
[22,"混凝土基层、垫层","1.部位：混凝土基层、垫层（混凝土甲供）\n2.混凝土强度等级：商品砼，混凝土泵送方式投标人自行考虑，包含在综合单价内，不再另计；模板费用综合在投标报价内，不再单独另行计算；\n3.其余做法要求：满足设计及现行施工技术、质量验收规范要求","m3",{"$f":"50*2","v":100},60,6000]
[23,"无机涂料天棚","1.钢筋混凝土楼面板、基层清理、捡平\n2.刷水泥浆一道（加建筑胶适量）\n3.3～5mm厚防水聚合物水泥抹灰砂浆分层抹平\n4.喷（刷）无机涂料(一层底漆，两层面漆，抗菌耐水易洁型)\n5.具体做法:详设计图并满足相关验收规范要求\n6.本项目所有砂浆均为成品砂浆，干拌砂浆或成品砂浆投标人自行考虑。","m2",{"$f":"179.52*2+91.45+1433.01","v":1883.5},40,75340]
[24,"铝合金方板顶棚","1.钢筋混凝土板内预留φ6吊环，双向吊点，中距900-1200\n2.3～5mm厚防水聚合物水泥抹灰砂浆分层抹平\n3.φ6钢筋吊杆或M6全牙吊杆与结构中的预埋件焊接或后置紧固件连接，双向中距≤1200mm\n4.U型轻钢承载龙骨C38X12X1.0mm，中距≤1200，用吊件与钢筋吊杆联结后找平\n5.T型轻钢主龙骨24X32X0.27X0.27mm，间距等于板材宽度，用挂件与承载龙骨固定\n6.T型轻钢次龙骨24X28X0.27X0.27mm，间距等于板材宽度，与主龙骨插接\n7.300X300X0.8铝合金方板\n8.具体做法:详设计图并满足相关验收规范要求","m2",{"$f":"50.36*2+410.23","v":510.95},165,84306.75]
[25,"塑钢蹲位卫生间隔断","参见西南18J517第45页1b节点","套",20,800,16000]
[26,"灰色塑钢小便池隔板隔断","参见西南18J517第45页1b节点,隔板宽改为350","套",6,150,900]
[27,"地砖踢脚线","1.结合层厚度、砂浆配合比 :4厚纯水泥浆粘结层(水泥浆内掺20%白乳胶)，找平层综合考虑\n2.面层材料品种、规格、颜色 ： 6厚地砖踢脚线（包工包料）（满足东鹏、冠珠、新中源的品牌品质要求）\n3.嵌缝材料种类 :白水泥擦缝\n4.做法：满足设计及现行施工技术、质量验收规范要求\n5.本项目所有砂浆均为成品砂浆，干拌砂浆或成品砂浆投标人自行考虑。","m2",10,120,1200]
[28,"门带门套","1.门类型:夹板木门、满足美心、群升、王力品牌品质要求\n2.开启方式:综合\n3.颜色：综合\n4.所有外门窗均采用带有RISN节能标示的门窗。\n4.其他:五金配件、紧固件、密封材料、发泡剂、埋件、连接件、油漆等包括在综合单价中，门窗安装应满足其强度、热工、声学及安全性等技术要求\n5.其他:符合设计规范及施工验收规范要求","m2",30,512,15360]
[29,"无障碍坡道栏杆","1.不锈钢材质：201拉丝不锈钢\n2. 所有外露的上下金属管均应先作除锈处理,再刷防锈漆二道，并按各专业规定的颜色罩调和漆二道。其它外露铁件均先作除锈处理，再刷防锈漆二道，调和漆两道；\n3.国标12J926 2/22，1/46  做法05","m",30,185,5550]
[30,"无障碍座便器安全抓杆","参见12J926-J10/3\n","m",5,80,400]
[31,"无障碍座便器靠墙安全抓杆\n","参见12J926-J10/3","m",5,80,400]
["安装工程"]
[32,"AL-Z(建筑配电总箱）","1.名称：AL-Z(建筑配电总箱）\n2.型号、规格 ：详设计，含箱内电气元件\n3.安装方式：详设计","台",3,1500,{"$f":"F38*E38","v":4500}]
[33,"AL-1（照明配电箱）","1.名称：AL-1（照明配电箱）\n2.型号、规格 ：详设计，含箱内电气元件\n3.安装方式：详设计","台",3,900,2700]
[34,"AL-wjs(卫生间照明配电箱）","1.名称：AL-wjs(卫生间照明配电箱）\n2.型号规格：详设计，含箱内电气元件\n3.安装方式：详设计","台",4,500,2000]
[35,"应急照明箱（LAE箱）","1.名称：应急照明箱（LAE箱） \n2.型号规格：详设计，含箱内电气元件\n3.安装方式：详设计","台",3,300,900]
[36,"线管 PVC50","1.名称：电气配管 \n2.材质：PVC \n3.规格：DN50\n4.配置形式：综合考虑 ","m",{"$f":"4.6*2+20.5","v":29.7},20,594]
[37,"配管 PVC25","1.名称：电气配管 \n2.材质：PVC \n3.规格：DN25\n4.配置形式：综合考虑 ","m",{"$f":"12.1*2+35.9","v":60.1},8,480.8]
[38,"配管 PVC20","1.名称：电气配管 \n2.材质：PVC \n3.规格：DN20\n4.配置形式：综合考虑 ","m",{"$f":"259.1*2+374.65","v":892.85},6,5357.1]
[39,"电线配管开线槽（宽度综合）","1.名称 ：电线配管开线槽\n2.材质 ：综合考虑\n3.规格 ：综合考虑","m",600,15,9000]
[40,"配线（WDZ-YJV5*16）","1.名称：电气配线 \n2.配线形式：综合考虑\n3.型号：WDZ-YJV\n4.规格：5*16mm2  \n5.材质：铜芯 \n6.配线部位：综合考虑\n7.配线线制：综合\n\n","m",{"$f":"11.22*2+27.51","v":49.95},70,3496.5]
[41,"配线（WDZ-YJV3*6）","1.名称：电气配线 \n2.配线形式：综合考虑\n3.型号：WDZ-YJV\n4.规格：3*6mm2  \n5.材质：铜芯 \n6.配线部位：综合考虑\n7.配线线制：综合\n\n","m",{"$f":"18.9*2+43.3","v":81.1},20,1622]
[42,"配线(BBTRZ-3*4)","1.名称：电气配线 \n2.配线形式：综合考虑\n3.型号：BBTRZ\n4.规格：3*4mm2  \n5.材质：铜芯 \n6.配线部位：综合考虑\n7.配线线制：综合\n\n","m",{"$f":"9.63*2+9.63","v":28.89},10,288.9]
[43,"配线（照明WZD-BYJ3*2.5)","1.名称：电气配线 \n2.配线形式：综合考虑\n3.型号：WZD-BYJ\n4.规格：3*2.5mm2  \n5.材质：铜芯 \n6.配线部位：综合考虑\n7.配线线制：综合\n\n","m",{"$f":"154.92*2+793.6","v":1103.44},8,8827.52]
[44,"配线（插座WZD-BYJ3*4)","1.名称：电气配线 \n2.配线形式：综合考虑\n3.型号：WZD-BYJ\n4.规格：3*4mm2  \n5.材质：铜芯 \n6.配线部位：综合考虑\n7.配线线制：综合\n\n","m",{"$f":"111.78*2+165","v":388.56},10,3885.6]
[45,"配线（NH-RV5 2*2.5)","1.名称：电气配线 \n2.配线形式：综合考虑\n3.型号：NH-RV5\n4.规格：2*2.5mm2  \n5.材质：铜芯 \n6.配线部位：综合考虑\n7.配线线制：综合\n\n","m",{"$f":"67.25*2+250","v":384.5},6,2307]
[46,"分线接线箱","1.名称 ：分线接线箱\n2.材质 ：详设计\n3.规格 ：详设计\n4.安装形式：详设计","个",3,5,15]
[47,"弱电预留管道（含引线）","1.名称：电气配管 \n2.材质：PVC \n3.规格：DN20\n4.配置形式：综合考虑 ","m",{"$f":"52.03*2+52.03","v":156.09},8,1248.72]
[48,"接线盒（开关、插座、灯具等）","1.名称 ：接线盒\n2.材质 ：详设计\n3.规格 ：详设计\n4.安装形式：详设计","个",{"$f":"(29+21)*3","v":150},5,750]
[49,"双管LED等-2*36W","1.名称：双管LED等-2*36W\n2.型号、规格：按设计及业主选型\n3.安装形式：详设计\n4.含灯具安装所需光源、金属软管等","套",{"$f":"15*2+28","v":58},150,8700]
[50,"吸顶灯","1.名称：600*600LED节能吸顶灯 AC220V-1X70W\n2.型号、规格：按设计及业主选型\n3.安装形式：详设计\n4.含灯具安装所需光源、金属软管等","套",3,100,300]
[51,"卫生间（吸顶式排气扇-照明一体）","1.名称：卫生间（吸顶式排气扇-照明一体）\n2.型号、规格：按设计及业主选型\n3.安装形式：详设计\n4.含灯具安装所需光源、金属软管等","套",{"$f":"5*2+3","v":13},800,10400]
[52,"消防疏散照明灯（吸顶式）","1.名称：消防疏散照明灯（吸顶式）\n2.型号、规格：按设计及业主选型\n3.安装形式：详设计\n4.含灯具安装所需光源、金属软管等","套",{"$f":"2*2+9","v":13},70,910]
[53,"消防疏散照明灯（壁挂式）","1.名称：消防疏散照明灯（壁挂式）\n2.型号、规格：按设计及业主选型\n3.安装形式：详设计\n4.含灯具安装所需光源、金属软管等","套",{"$f":"3*2+6","v":12},70,840]
[54,"单向疏散标志灯","1.名称：单向疏散标志灯\n2.型号、规格：按设计及业主选型\n3.安装形式：详设计\n4.含灯具安装所需光源、金属软管等","套",{"$f":"1*2+4","v":6},50,300]
[55,"疏散出口大型标志灯","1.名称：疏散出口大型标志灯\n2.型号、规格：按设计及业主选型\n3.安装形式：详设计\n4.含灯具安装所需光源、金属软管等","套",{"$f":"1*2+9","v":11},50,550]
[56,"照明开关（暗装3联以下）","1.名称：暗装3联以下    \n2.材质：详设计\n3.规格：按设计及业主选型\n4.安装方式：H=1.3m","个",{"$f":"4*2+6","v":14},20,280]
[57,"照明开关（暗装6联以下）","1.名称：暗装6联以下   \n2.材质：详设计\n3.规格：按设计及业主选型\n4.安装方式：H=1.3m","个",{"$f":"1*2+2","v":4},20,80]
[58,"插座（五孔250V/10A)","1.名称：五孔250V/10A  \n2.材质：详设计\n3.规格：按设计及业主选型\n4.安装方式：H=1.3m","个",{"$f":"11*2+11","v":33},30,990]
[59,"插座(空调三孔250V/16A)","1.名称：空调三孔250V/16A\n2.材质规格：按设计及业主选型\n3.安装方式：详设计\n4.满足设计及施工验收规范要求","个",{"$f":"1*2+2","v":4},30,120]
[60,"插座(柜式空调三孔250V/20A)","1.名称：安全型单相防水五孔插座\r\n2.材质规格：按设计及业主选型\r\n3.安装方式：详设计\r\n4.满足设计及施工验收规范要求","个",{"$f":"4*2+4","v":12},30,360]
[61,"屋面排水管UPVC Φ110","1.安装部位：室内综合\n2.输送介质：排水系统\n3.材质、规格：塑料管 DN100 \n4.连接形式：详设计\n5.包括管件、管卡及吊托支架制作安装以及套管敷设、管洞防水堵漏等工作内容\n6.其他：详设计\n","m",{"$f":"22*2+63.6","v":107.6},32,3443.2]
[62,"塑料管 UPVC Φ50","1.安装部位：室内综合\n2.输送介质：排水系统\n3.材质、规格：PVC塑料管 DN50\n4.连接形式：详设计\n5.包括管件、管卡及吊托支架制作安装以及套管敷设、管洞防水堵漏等工作内容\n6.其他：详设计","m",{"$f":"18.3*2+6.3","v":42.9},15,643.5]
[63,"塑料管（UPVC-Φ200)","1.安装部位：室内外综合\n2.输送介质：排水系统\n3.材质、规格：UPVC-Φ160\n4.连接形式：详设计\n5.包括管件、管卡及吊托支架制作安装以及套管敷设、管洞防水堵漏等工作内容\n6.其他：详设计","m",{"$f":"6.7*2","v":13.4},55,737]
[64,"塑料管（UPVC-Φ160)","1.安装部位：室内外综合\n2.输送介质：排水系统\n3.材质、规格：UPVC-Φ160\n4.连接形式：详设计\n5.包括管件、管卡及吊托支架制作安装以及套管敷设、管洞防水堵漏等工作内容\n6.其他：详设计","m",{"$f":"6.7*2+6.7","v":20.1},45,904.5]
[65,"塑料管（UPVC-Φ110)","1.安装部位：室内外综合\n2.输送介质：排水系统\n3.材质、规格：UPVC-Φ110\n4.连接形式：详设计\n5.包括管件、管卡及吊托支架制作安装以及套管敷设、管洞防水堵漏等工作内容\n6.其他：详设计","m",{"$f":"34.9*2+34.9","v":104.7},32,3350.4]
[66,"塑料管（UPVC-Φ75)","1.安装部位：室内外综合\n2.输送介质：排水系统\n3.材质、规格：UPVC-Φ75\n4.连接形式：详设计\n5.包括管件、管卡及吊托支架制作安装以及套管敷设、管洞防水堵漏等工作内容\n6.其他：详设计","m",{"$f":"12*2+12","v":36},18,648]
[67,"冷水管 PPR-DN15","1.安装部位：室内综合\n2.输送介质：给水系统\n3.材质、规格：PP-R塑料冷水管 DN15 \n4.连接形式：热熔连接\n5.包括管件、管卡及吊托支架制作安装以及套管敷设、管洞防水堵漏等工作内容\n6.其他：详设计","m",{"$f":"17.83*2+16","v":51.66},18,929.88]
[68,"冷水管 PPR-DN20","1.安装部位：室内综合\n2.输送介质：给水系统\n3.材质、规格：PP-R塑料冷水管 DN20\n4.连接形式：热熔连接\n5.包括管件、管卡及吊托支架制作安装以及套管敷设、管洞防水堵漏等工作内容\n6.其他：详设计","m",{"$f":"20*2+20","v":60},19,1140]
[69,"冷水管 PPR-DN25","1.安装部位：室内综合\r\n2.输送介质：给水系统\r\n3.材质、规格：PP-R塑料冷水管 DN25\r\n4.连接形式：热熔连接\r\n5.包括管件、管卡及吊托支架制作安装以及套管敷设、管洞防水堵漏等工作内容\r\n6.其他：详设计","m",{"$f":"57.2*2+25.9","v":140.3},21,2946.3]
[70,"冷水管 PPR-DN32","1.安装部位：室内综合\n2.输送介质：给水系统\n3.材质、规格：PP-R塑料冷水管 DN32\n4.连接形式：热熔连接\n5.包括管件、管卡及吊托支架制作安装以及套管敷设、管洞防水堵漏等工作内容\n6.其他：详设计","m",{"$f":"6.93*2+22.8","v":36.66},22,806.52]
[71,"冷水管 PPR-DN40","1.安装部位：室内综合\r\n2.输送介质：给水系统\r\n3.材质、规格：PP-R塑料冷水管 DN40\r\n4.连接形式：热熔连接\r\n5.包括管件、管卡及吊托支架制作安装以及套管敷设、管洞防水堵漏等工作内容\r\n6.其他：详设计","m",{"$f":"4.6*2","v":9.2},33,303.6]
[72,"冷水管 PPR-DN50","1.安装部位：室内综合\n2.输送介质：给水系统\n3.材质、规格：PP-R塑料冷水管 DN50\n4.连接形式：热熔连接\n5.包括管件、管卡及吊托支架制作安装以及套管敷设、管洞防水堵漏等工作内容\n6.其他：详设计","m",{"$f":"10.35*3","v":31.05},38,1179.9]
[73,"给水开线槽（宽度综合）","1.名称 ：开线槽\n2.材质 ：综合考虑\n3.规格 ：综合考虑","m",{"$f":"120*2","v":240},15,3600]
[74,"倒流防止阀 DN50","1.类型：倒流防止阀 DN50铜芯\n2.材质：详设计\n3.规格、压力等级：DN50\n4.连接形式：综合考虑","个",3,80,240]
[75,"地漏 DN50","1.名称：不锈钢地漏\n2.安装方式、材质：详西南18J517-37-4、5\n3.型号、规格：DN50","个",{"$f":"3*2","v":6},30,180]
[76,"地漏 DN100","1.名称：不锈钢地漏\n2.安装方式、材质：详西南18J517-37-4、5\n3.型号、规格：DN100","个",{"$f":"3*2","v":6},60,360]
[77,"成品拖布池(材料甲购）","1.名称：成品拖布池（材料甲供）\n2.详西南18J517-53-1、2","个",3,35,105]
[78,"座便器（儿童用）(材料甲购）","1.材质、规格、类型：甲供\n2.组装形式：整体安装 \n3.满足设计及施工验收规范要求","套",3,70,210]
[79,"座便器（残障人士专用）(材料甲购）","1.材质、规格、类型：甲供\r\n2.组装形式：整体安装\r\n3.满足设计及施工验收规范要求","套",3,70,210]
[80,"座便器(材料甲购）","1.材质、规格、类型：甲供\n2.组装形式：整体安装\n3.满足设计及施工验收规范要求","套",3,70,210]
[81,"蹲便器(材料甲购）","1.材质、规格、类型：甲供\r\n2.组装形式：整体安装\r\n3.满足设计及施工验收规范要求","套",{"$f":"10*2+7","v":27},95,2565]
[82,"小便器(材料甲购）","1.材质、规格、类型：甲供\n2.组装形式：整体安装 \n3.满足设计及施工验收规范要求","套",{"$f":"3*2+2","v":8},95,760]
[83,"成品独立式洗手盆(材料甲购）","1.材质、规格、类型：甲供\n2.组装形式：整体安装\n3.满足设计及施工验收规范要求","个",{"$f":"2*2+1","v":5},80,400]
[84,"台面洗手盆安装(材料甲购）（含儿童、残障人士卫生间洗手盆）","1.材质、规格、类型：甲供\n2.组装形式：整体安装\n3.满足设计及施工验收规范要求","个",{"$f":"4*2+7","v":15},80,1200]
[85,"水表（含表前阀）DN50(材料甲购）","1.安装部位（室内外）：综合考虑\r\n2.型号、规格：DN50 \r\n3.连接形式：详设计  ","个",3,100,300]
[86,"大理石台面洗手台（包工包料，含儿童、残卫）","1.基层;40*40*3镀锌角钢固定+15厚木工板\n2.面层：大理石台面，宽600mm(投影面积）\n3.其他：含石材开孔，详设计","m2",{"$f":"2.8*0.6*2+1.2*0.6*2+3.1*0.6+1.2*0.6+2.2*0.6","v":8.7},550,4785]
[87,"镜面","做法参西南18J517第38页1节点,镜面高1000,宽度同洗手台。","m2",5,200,1000]
[88,"灯具","1.名称：安装方式综合考虑（灯具甲供）\n2.型号、规格：按设计及业主选型\n3.安装形式：详设计\n4.含灯具安装所需光源、金属软管等","套",70,25,1750]
[89,"外脚手架","1.脚手架高度：脚手架形式综合考虑。                                                                                                                                                                                                                     2.脚手架类型：钢管脚手架 ，斜道、上料平台、安全网等投标人综合考虑，不再另行计算。                                                                                                                                                      3.脚手架材料：钢管、脚手板、安全网、水平防护、立面防护网的材质、工艺等符合相关安全及施工验收规范要求                                                                                                                                                             4.材料场内运输、转运费用已综合考虑在单价中                                                                                                                  5.工程量计算：按建筑物外围垂直水平投影面积计算。","m2",{"$f":"E12+E13+E14+E15+E16","v":2247.12},30,67413.6]
["合　　计",{"$nulls":5},{"$f":"SUM(G6:G95)","v":3443627.135}]
["注：\n1.工程量计算规则：除项目特征单独说明外，均按2020年《四川省建设工程工程量清单计价定额》相关规定执行。\n2.投标人根据施工图、施工工艺、工序及国家现行规范、自行踏勘现场后综合考虑进行报价，结算时单价不作调整;\n3.全费用综合单价包含人工费、所有材料费（含辅材和周转材料费）、机械设备费、工具器具费、临时设施及措施费、大型机械进出场及场内转运费、下车费、吊装费、规费、管理费、配合费、安全文明施工费、以及各种风险费、保险费、施工过程中办理的各种手续费、降水费、排水费、各种检测费、超高费、派生费、室内综合脚手架费用、利润、税费等完成该工作所需的全部费用，结算时无论涨跌、工程量增减或其它任何风险因素，均不作调整。                                                                                                                            \n4.现场安全环保文明施工管理要求：（1）由公司统一发放印有“兴绿园林”字样和LOGO的安全帽和反光背心，班组按实名制领取，使用完后交回项目部，否则按采购费用扣款，其余参照合同附件中安全环保管理协议执行。（2）现场雾炮机由甲方提供，投标单位需安排人员管理使用，人工费、油费及管理费用综合考虑到投标报价中，不单独计取。（3）防尘网由甲方提供，投标单位安排人员进行覆盖、回收、现场转移等，人工费综合考虑到投标报价中，不单独计取。\n5.该综合单价已包括垃圾外运费用，承包人自行综合考虑。                            \n6.施工中用电由投标人采用发电机发电，所用临时配电箱、用电线路、开关箱、机具等所有材料、设备及安装费用含在综合单价中。                                                                                     7.甲方提供施工用水接头位置，投标人自行考虑进行接管或河道抽水使用，费用包含在报价内。                                                                                                                                                                                                                        8.甲供材料下车费用和场内转运费用由投标人综合考虑，包含在报价内。                                                                                                                                         9.投标人对于甲供到场材料具有保管义务，遗失或损坏，应照价赔偿。 \n10.本次采用全费用单价报价形式，最高限价为3443627.14元，施工单位所报价高于最高限价的为无效报价，采购人不予接受。同时在工程量清单中公布最高费用单价限价，施工单位的全费用单价限价，施工单位的全费用单价也不得超过最高全费用单价限价，否则，采购人将予以拒绝。\n11.最终结算时，以经审计单位核定的实际完成工程量及有效的竣工资料进行计算，全费用单价按中选的全费用单价进行计价。  \n12. 开具的发票为增值税专票（税率为9%）。\n13.本项目施工所需的主要材料的最低品质标准要求如下：\n(1)成品复合门满足美心、群升、王力品牌品质要求；\n(2)铝合金门窗满足圣保罗、坚美门窗、中旺铝业的品牌品质要求；\n(3)地砖满足东鹏、冠珠、新中源的品牌品质要求；\n(4)乳胶漆满足立邦、多乐士、三棵树的品牌品质要求；\n(5)开关插座满足西门子、飞雕、正泰、德力西的品牌品质要求；\n(6)电线电缆满足塔牌电缆、熊猫电缆、长城电缆的品牌品质要求；\n(7)灯具满足三雄极光、欧普、德力西的品牌品质要求；\n(8)LED光源满足欧普、飞利浦、雷士的品牌品质要求；\n(9)消防报警系统设备满足海湾、利达、松江的品牌品质要求；\n(10)监控系统满足浙江大华、海康威视、天地伟业的品牌品质要求；\n(11)洁具、卫具满足九牧、箭牌、帝王的品牌品质要求；\n(12)防水卷材满足雨虹、科顺、大禹的品牌品质要求。 "]